bitfinex-derivatives/quotes_BTCF0:USTF0_20241122
["timestamp","ask_amount","ask_price","bid_price","bid_amount"]
[1732308535413,0.050478,98928.0,98908.0,0.083088]
[1732308535414,0.050478,98928.0,98920.0,0.050482]
[1732308535614,0.050478,98928.0,98922.0,0.050481]
[1732308535910,0.30324,98928.0,98920.0,0.050481]
[1732308536209,0.411282,98921.0,98920.0,0.050481]
[1732308537603,0.050487,98912.0,98911.0,0.050487]
[1732308537816,0.3608,98913.0,98911.0,0.050487]
[1732308538113,0.3608,98913.0,98912.0,0.050486]
[1732308538908,0.411286,98913.0,98912.0,0.050486]
[1732308539104,0.3608,98913.0,98912.0,0.050486]
[1732308539812,0.050491,98902.0,98890.0,0.050497]
[1732308540005,0.050491,98902.0,98896.0,0.050494]
[1732308540515,0.050491,98902.0,98900.0,0.050492]
[1732308540814,0.050491,98902.0,98901.0,0.050972]
[1732308541407,0.050491,98902.0,98901.0,0.00048]
[1732308541815,0.050491,98902.0,98901.0,0.050972]
[1732308542413,0.050491,98902.0,98901.0,0.00048]
[1732308542711,0.050491,98902.0,98901.0,0.050972]
[1732308543121,0.050491,98902.0,98901.0,0.00048]
[1732308543415,0.050491,98902.0,98901.0,0.050972]
[1732308545910,0.0829853,98902.0,98901.0,0.050972]
[1732308546113,0.3608,98903.0,98901.0,0.00048]
[1732308546414,0.3608,98913.0,98912.0,0.050486]
[1732308548721,0.0331,98931.0,98912.0,0.050486]
[1732308548722,0.050478,98929.0,98928.0,0.050477]
[1732308549120,0.050481,98923.0,98912.0,0.3608]
[1732308549421,0.050486,98913.0,98912.0,0.3608]
[1732308550225,0.050486,98913.0,98912.0,0.411286]
[1732308551321,0.050486,98913.0,98912.0,0.050486]
[1732308554422,0.050485,98916.0,98890.0,0.38148576]
[1732308554723,0.050493,98900.0,98899.0,0.050493]
[1732308555228,0.050485,98916.0,98891.0,0.0321]
[1732308555229,0.05049,98905.0,98904.0,0.050489]
[1732308555621,0.050489,98909.0,98908.0,0.050488]
[1732308556819,0.050491,98905.0,98904.0,0.05049]
[1732308557128,0.050493,98899.0,98890.0,0.36132]
[1732308557425,0.050493,98899.0,98896.0,0.050494]
[1732308557925,0.590493,98899.0,98893.0,0.050496]
[1732308558122,0.590493,98899.0,98890.0,0.36132]
[1732308558422,0.050493,98899.0,98896.0,0.050494]
[1732308558730,0.050493,98899.0,98890.0,0.36132]
[1732308558919,0.050493,98899.0,98897.0,0.050494]
[1732308559220,0.050493,98899.0,98898.0,0.411293]
[1732308560631,0.050493,98899.0,98898.0,0.3608]
[1732308561919,0.050493,98899.0,98890.0,0.00052]
[1732308562121,0.050498,98889.0,98888.0,0.00151661]
[1732308563322,0.050498,98889.0,98888.0,0.05201561]
[1732308567933,0.050498,98889.0,98888.0,0.00151661]
[1732308573527,0.30336,98889.0,98888.0,0.00151661]
[1732308573731,0.050498,98889.0,98888.0,0.00151661]
[1732308576025,0.3608,98891.0,98890.0,0.050498]
[1732308576232,0.411297,98891.0,98890.0,0.050498]
[1732308579035,0.050498,98889.0,98888.0,0.05201461]
[1732308579832,0.050498,98889.0,98888.0,0.00151661]
[1732308581337,0.353858,98889.0,98888.0,0.00151661]
[1732308581742,0.050498,98889.0,98888.0,0.00151661]
[1732308582538,0.353858,98889.0,98888.0,0.00151661]
[1732308584139,0.08343944,98889.0,98888.0,0.00151661]
[1732308584348,0.00060001,98919.0,98899.0,0.0399]
[1732308584535,0.3608,98927.0,98911.0,0.3608]
[1732308584852,0.050483,98919.0,98917.0,0.3608]
[1732308585544,0.050488,98909.0,98904.0,0.05049]
[1732308585739,0.12008,98917.0,98905.0,0.05049]
[1732308586147,0.050486,98912.0,98903.0,0.36132]
[1732308586442,0.050486,98912.0,98906.0,0.050489]
[1732308587248,0.050487,98912.0,98906.0,0.050489]
[1732308587447,0.12008,98917.0,98906.0,0.050489]
[1732308587749,0.3608,98911.0,98903.0,0.36132]
[1732308587951,0.05049,98905.0,98903.0,0.3608]
[1732308588148,0.0325,98904.0,98903.0,0.3608]
[1732308588446,0.08299,98904.0,98903.0,0.3608]
[1732308588838,0.08299,98904.0,98892.0,0.0317]
[1732308589155,0.050497,98892.0,98891.0,0.00151666]
[1732308589645,0.411297,98892.0,98891.0,0.00151666]
[1732308591353,0.411297,98892.0,98891.0,0.05201366]
[1732308592047,0.050497,98892.0,98891.0,0.05201366]
[1732308592346,0.050497,98892.0,98891.0,0.00151666]
[1732308593448,0.050497,98892.0,98891.0,0.05201366]
[1732308594037,0.12008,98900.0,98891.0,0.05201366]
[1732308594243,0.170572,98900.0,98899.0,0.050493]
[1732308595050,0.13373897,98904.0,98899.0,0.050493]
[1732308595248,0.050492,98900.0,98899.0,0.050493]
[1732308595445,0.411292,98900.0,98899.0,0.050493]
[1732308596147,0.411292,98900.0,98891.0,0.00151666]
[1732308596148,0.3608,98900.0,98891.0,0.00151666]
[1732308596347,0.3545655,98892.0,98891.0,0.05201366]
[1732308596537,0.3545655,98892.0,98891.0,0.00151666]
[1732308600352,0.050509,98867.0,98862.0,0.0307]
[1732308600543,0.050509,98867.0,98866.0,0.05118]
[1732308601148,0.050509,98867.0,98866.0,0.00067]
[1732308603048,0.34194703,98868.0,98866.0,0.00067]
[1732308603243,0.050509,98867.0,98866.0,0.00067]
[1732308603853,0.050522,98842.0,98841.0,0.411323]
[1732308604246,0.12008,98850.0,98841.0,0.3608]
[1732308604442,0.050521,98845.0,98844.0,0.05052]
[1732308604643,0.170598,98850.0,98849.0,0.050518]
[1732308604853,0.050521,98845.0,98844.0,0.050521]
[1732308605053,0.170598,98850.0,98842.0,0.050522]
[1732308605243,0.170598,98850.0,98841.0,0.36136]
[1732308605244,0.050521,98846.0,98845.0,0.05052]
[1732308605954,0.12008,98850.0,98849.0,0.050518]
[1732308606339,0.06332278,98850.0,98849.0,0.050518]
[1732308606946,0.11384078,98850.0,98849.0,0.050518]
[1732308607252,0.050516,98855.0,98853.0,0.050516]
[1732308607452,0.00060001,98864.0,98841.0,0.3608]
[1732308607649,0.050512,98862.0,98861.0,0.050511]
[1732308608551,0.050512,98862.0,98851.0,0.0644]
[1732308608552,0.050509,98867.0,98852.0,0.050517]
[1732308608754,0.03235736,98868.0,98858.0,0.09793756]
[1732308609054,0.050508,98870.0,98863.0,0.050511]
[1732308609250,0.3608,98864.0,98851.0,0.0644]
[1732308609451,0.050517,98852.0,98851.0,0.050517]
[1732308610444,0.032,98863.0,98855.0,0.050515]
[1732308610651,0.411306,98873.0,98870.0,0.050508]
[1732308610858,0.411306,98873.0,98850.0,0.09793756]
[1732308610859,0.3608,98873.0,98860.0,0.09793756]
[1732308611153,0.3608,98873.0,98872.0,0.050507]
[1732308611351,0.411306,98873.0,98872.0,0.050507]
[1732308611748,0.3608,98873.0,98872.0,0.050507]
[1732308612560,0.411306,98873.0,98872.0,0.050507]
[1732308612747,0.411306,98873.0,98861.0,0.0962]
[1732308612748,0.3608,98873.0,98867.0,0.050508]
[1732308612954,0.411307,98873.0,98872.0,0.050507]
[1732308614349,0.3608,98873.0,98872.0,0.050507]
[1732308615549,0.0323871,98882.0,98881.0,0.050502]
[1732308615757,0.0520164,98887.0,98886.0,0.0505]
[1732308615952,0.0015174,98887.0,98886.0,0.0505]
[1732308616354,0.3608,98890.0,98886.0,0.0505]
[1732308616550,0.050499,98887.0,98884.0,0.050501]
[1732308616749,0.09793756,98900.0,98877.0,0.3608]
[1732308616750,0.3608,98897.0,98877.0,0.36132]
[1732308616951,0.0505,98886.0,98885.0,0.050499]
[1732308617150,0.0505,98886.0,98877.0,0.3608]
[1732308617151,0.050498,98889.0,98877.0,0.3608]
[1732308617355,0.050498,98889.0,98888.0,0.050499]
[1732308617753,0.050498,98889.0,98877.0,0.3608]
[1732308617754,0.3608,98897.0,98877.0,0.3608]
[1732308618058,0.3608,98897.0,98896.0,0.050494]
[1732308620249,0.170368,98919.0,98913.0,0.050491]
[1732308620755,0.11988,98919.0,98913.0,0.050491]
[1732308620955,0.0307,98920.0,98913.0,0.050491]
[1732308621148,0.02552069,98919.0,98913.0,0.050491]
[1732308622857,0.111484,98926.0,98913.0,0.050491]
[1732308623054,0.05608705,98926.0,98913.0,0.050491]
[1732308623355,0.050493,98909.0,98908.0,0.36132]
[1732308623560,0.050493,98909.0,98908.0,0.3608]
[1732308625365,0.0315,98913.0,98909.0,0.050493]
[1732308625560,0.0315,98913.0,98911.0,0.050492]
[1732308625762,0.11984,98921.0,98908.0,0.36132]
[1732308626067,0.11984,98921.0,98908.0,0.3608]
[1732308626364,0.050492,98913.0,98912.0,0.050491]
[1732308626764,0.11984,98921.0,98908.0,0.36132]
[1732308626765,0.050493,98909.0,98908.0,0.411813]
[1732308626968,0.050493,98909.0,98908.0,0.411293]
[1732308627162,0.050493,98909.0,98908.0,0.3608]
[1732308628654,0.050493,98908.0,98907.0,0.050494]
[1732308628954,0.02785612,98914.0,98899.0,0.3608]
[1732308629157,0.00151709,98914.0,98913.0,0.050491]
[1732308629559,0.00151709,98914.0,98913.0,0.411291]
[1732308629757,0.05200709,98914.0,98913.0,0.411291]
[1732308630163,0.00151709,98914.0,98913.0,0.411291]
[1732308630566,0.00151709,98914.0,98913.0,0.714571]
[1732308630768,0.050485,98926.0,98925.0,0.050483]
[1732308631068,0.3608,98932.0,98913.0,0.66408]
[1732308631069,0.3608,98932.0,98915.0,0.0941]
[1732308631270,0.050484,98928.0,98927.0,0.050482]
[1732308632569,0.3608,98932.0,98918.0,0.09793756]
[1732308632769,0.050486,98924.0,98923.0,0.050485]
[1732308633165,0.050486,98924.0,98918.0,0.09793756]
[1732308633166,0.050488,98919.0,98918.0,0.050488]
[1732308633365,0.050489,98916.0,98915.0,0.0941]
[1732308633565,0.050489,98916.0,98915.0,0.14459]
[1732308633764,0.050487,98921.0,98920.0,0.050486]
[1732308633967,0.38708231,98932.0,98915.0,0.0941]
[1732308634165,0.050484,98927.0,98926.0,0.050484]
[1732308634561,0.09793756,98940.0,98915.0,0.0941]
[1732308634767,0.050481,98932.0,98931.0,0.050481]
[1732308635668,0.02571457,98945.0,98931.0,0.66404]
[1732308635870,0.07618957,98945.0,98944.0,0.050475]
[1732308636070,0.02571457,98945.0,98944.0,0.050475]
[1732308636271,0.3608,98949.0,98936.0,0.0645]
[1732308636471,0.411272,98949.0,98948.0,0.050473]
[1732308636666,0.050476,98942.0,98941.0,0.050476]
[1732308636872,0.050481,98932.0,98931.0,0.411841]
[1732308637176,0.050481,98932.0,98931.0,0.050481]
[1732308638875,0.050483,98929.0,98928.0,0.00151627]
[1732308639073,0.050483,98929.0,98928.0,0.05199927]
[1732308641101,0.05672171,98940.0,98928.0,0.00151627]
[1732308641395,0.05048,98936.0,98935.0,0.050479]
[1732308642289,6e-07,98952.0,98951.0,0.050471]
[1732308642488,6e-07,98952.0,98951.0,0.411271]
[1732308647494,0.1,99000.0,98999.0,0.050447]
[1732308647697,0.1,99000.0,98999.0,0.411247]
[1732308647893,0.10060001,99000.0,98999.0,0.411247]
[1732308648087,0.150446,99000.0,98999.0,0.411247]
[1732308648291,0.1,99000.0,98999.0,0.411247]
[1732308650186,0.1,99000.0,98999.0,0.3608]
[1732308650600,0.1,99000.0,98990.0,0.3608]
[1732308650795,0.050451,98992.0,98990.0,0.3608]
[1732308651490,0.050449,98996.0,98991.0,0.050451]
[1732308651693,0.05045,98994.0,98991.0,0.050451]
[1732308652093,0.05045,98994.0,98990.0,0.3608]
[1732308652094,0.050451,98991.0,98990.0,0.3608]
[1732308652296,0.1,99000.0,98998.0,0.050447]
[1732308652491,0.1,99000.0,98999.0,0.3608]
[1732308654192,0.150446,99000.0,98999.0,0.3608]
[1732308654499,0.1,99000.0,98999.0,0.3608]
[1732308657996,0.150446,99000.0,98999.0,0.3608]
[1732308658799,0.1,99000.0,98990.0,0.00052]
[1732308658989,0.050457,98980.0,98979.0,0.411257]
[1732308659189,0.050457,98980.0,98979.0,0.3608]
[1732308659795,0.050455,98985.0,98979.0,0.3608]
[1732308659989,0.050456,98982.0,98981.0,0.050456]
[1732308660294,0.48024,98996.0,98979.0,0.3608]
[1732308660295,0.050453,98987.0,98986.0,0.050453]
[1732308660902,0.050457,98981.0,98980.0,0.050457]
[1732308661101,0.050453,98988.0,98987.0,0.050453]
[1732308661303,0.050449,98995.0,98994.0,0.050449]
[1732308661700,0.050453,98989.0,98988.0,0.050452]
[1732308662203,0.050456,98983.0,98982.0,0.050455]
[1732308663201,0.050457,98980.0,98979.0,0.411257]
[1732308663402,0.050457,98980.0,98979.0,0.050457]
[1732308664100,0.050453,98987.0,98965.0,0.00151584]
[1732308664290,0.11944,98992.0,98965.0,0.00151584]
[1732308664291,0.3608,98988.0,98965.0,0.00151584]
[1732308664499,0.050454,98985.0,98965.0,0.00151584]
[1732308664699,0.050461,98973.0,98972.0,0.05046]
[1732308665402,0.050452,98990.0,98965.0,0.00151584]
[1732308665403,0.11944,98992.0,98986.0,0.050452]
[1732308665699,0.02622153,98996.0,98994.0,0.050449]
[1732308665700,0.050449,98995.0,98994.0,0.050449]
[1732308665899,0.1,99000.0,98981.0,0.3608]
[1732308665900,0.050451,98991.0,98990.0,0.050451]
[1732308666099,0.21944,99000.0,98981.0,0.3608]
[1732308666297,0.050456,98983.0,98982.0,0.050455]
[1732308667901,0.050456,98982.0,98981.0,0.36132]
[1732308668202,0.050456,98982.0,98960.0,0.0977617]
[1732308668203,0.05046,98973.0,98972.0,0.05046]
[1732308668396,0.0977617,98982.0,98967.0,0.36132]
[1732308668598,0.050463,98968.0,98967.0,0.411263]
[1732308668999,0.050462,98973.0,98972.0,0.050459]
[1732308669697,0.050458,98977.0,98976.0,0.050458]
[1732308670007,0.11944,98987.0,98986.0,0.050454]
[1732308670505,0.00151585,98988.0,98987.0,0.050453]
[1732308670807,0.05196885,98988.0,98987.0,0.050453]
[1732308671200,0.07805531,98988.0,98987.0,0.050453]
[1732308671904,0.00151585,98988.0,98987.0,0.050453]
[1732308672102,0.05196885,98988.0,98984.0,0.3608]
[1732308672305,0.050454,98985.0,98984.0,0.3608]
[1732308672510,0.050454,98985.0,98984.0,0.411255]
[1732308672697,0.050454,98985.0,98984.0,0.3608]
[1732308672896,0.050454,98985.0,98984.0,0.411255]
[1732308674911,0.050459,98976.0,98971.0,0.050461]
[1732308675209,0.050459,98976.0,98975.0,0.050459]
[1732308675604,0.050463,98972.0,98971.0,0.050461]
[1732308675997,0.00151585,98988.0,98975.0,0.050457]
[1732308675998,0.050459,98976.0,98975.0,0.050457]
[1732308676497,0.00151585,98988.0,98975.0,0.050457]
[1732308676810,0.050457,98982.0,98981.0,0.050456]
[1732308677606,0.05046,98977.0,98976.0,0.050458]
[1732308678709,0.05046,98974.0,98973.0,0.36132]
[1732308678911,0.3608,98979.0,98965.0,0.00203584]
[1732308679207,0.050463,98972.0,98971.0,0.050461]
[1732308679902,0.00151585,98988.0,98987.0,0.050453]
[1732308680216,0.00151585,98988.0,98987.0,0.411253]
[1732308680705,0.00151585,98988.0,98987.0,0.772053]
[1732308680898,0.1,99000.0,98999.0,0.050447]
[1732308681101,0.150446,99000.0,98999.0,0.050447]
[1732308681510,0.050457,98979.0,98978.0,0.3608]
[1732308681707,0.050457,98979.0,98960.0,0.50743706]
[1732308681708,0.050457,98979.0,98970.0,0.050462]
[1732308681906,0.050461,98971.0,98970.0,0.050462]
[1732308684113,0.050464,98966.0,98960.0,0.3608]
[1732308684308,0.050464,98966.0,98702.0,0.3235227]
[1732308684309,0.050464,98966.0,98951.0,0.0333]
[1732308684511,0.050475,98944.0,98943.0,0.3608]
[1732308684702,0.11928,98954.0,98934.0,0.0661]
[1732308685100,0.050478,98938.0,98937.0,0.050479]
[1732308685316,0.050476,98943.0,98936.0,0.050479]
[1732308685614,0.050476,98943.0,98934.0,0.0661]
[1732308686009,0.11928,98954.0,98934.0,0.0661]
[1732308686618,0.050478,98941.0,98940.0,0.050477]
[1732308687118,0.3608,98946.0,98934.0,0.0661]
[1732308687311,0.3608,98946.0,98934.0,0.0333]
[1732308687312,0.05048,98935.0,98934.0,0.0333]
[1732308687504,0.05048,98935.0,98934.0,0.08378]
[1732308688218,0.05048,98935.0,98934.0,0.0333]
[1732308689105,0.050481,98932.0,98931.0,0.00056]
[1732308689306,0.033,98945.0,98919.0,0.0309]
[1732308689512,0.11928,98938.0,98923.0,0.050486]
[1732308689713,0.050485,98924.0,98923.0,0.050486]
[1732308690516,0.050484,98927.0,98919.0,0.0309]
[1732308691113,0.11928,98938.0,98919.0,0.0309]
[1732308691309,0.11928,98938.0,98917.0,0.36132]
[1732308691507,0.050488,98919.0,98918.0,0.050488]
[1732308692218,0.050488,98919.0,98917.0,0.36132]
[1732308692521,0.050488,98919.0,98917.0,0.3608]
[1732308693024,0.050488,98919.0,98914.0,0.36283624]
[1732308693025,0.05049,98915.0,98914.0,0.36283624]
[1732308693210,0.41129,98915.0,98914.0,0.00151624]
[1732308693615,0.41129,98915.0,98897.0,0.00052]
[1732308693616,0.050499,98898.0,98897.0,0.00052]
[1732308693819,0.48012,98900.0,98886.0,0.3608]
[1732308694021,0.11932,98899.0,98893.0,0.050501]
[1732308694322,0.11932,98903.0,98890.0,0.14663706]
[1732308694524,0.3608,98915.0,98890.0,0.14663706]
[1732308694525,0.11932,98909.0,98890.0,0.14663706]
[1732308694718,0.11932,98909.0,98901.0,0.050497]
[1732308694919,0.050496,98902.0,98901.0,0.050497]
[1732308695121,0.050493,98908.0,98902.0,0.050496]
[1732308695315,0.050493,98908.0,98905.0,0.050495]
[1732308695516,0.050493,98908.0,98906.0,0.050494]
[1732308696222,0.38300748,98915.0,98898.0,0.14663706]
[1732308696424,0.38300748,98915.0,98913.0,0.05049]
[1732308697323,0.11932,98932.0,98914.0,0.3608]
[1732308697622,0.050483,98928.0,98923.0,0.050485]
[1732308697919,0.050488,98920.0,98918.0,0.050488]
[1732308698510,0.02341107,98925.0,98915.0,0.032]
[1732308698511,0.02341107,98925.0,98924.0,0.050485]
[1732308699211,0.07389607,98925.0,98924.0,0.050485]
[1732308699821,0.02341107,98925.0,98915.0,0.032]
[1732308700316,0.00151662,98925.0,98924.0,0.411285]
[1732308703317,0.00151662,98925.0,98924.0,0.714565]
[1732308703518,0.050471,98952.0,98951.0,0.05047]
[1732308703723,0.050475,98945.0,98944.0,0.050474]
[1732308704424,0.050476,98944.0,98943.0,0.050475]
[1732308706629,0.0846342,98955.0,98938.0,0.42272]
[1732308706630,0.050478,98939.0,98938.0,0.36132]
[1732308706830,0.050478,98939.0,98938.0,0.3608]
[1732308707328,0.050478,98939.0,98938.0,0.411278]
[1732308708830,0.050478,98939.0,98938.0,0.3608]
[1732308710418,0.0317,98947.0,98938.0,0.3608]
[1732308710618,0.0222342,98955.0,98954.0,0.05047]
[1732308710921,0.050469,98955.0,98954.0,0.05047]
[1732308711127,0.050473,98949.0,98948.0,0.050472]
[1732308711629,0.050478,98942.0,98941.0,0.050476]
[1732308712427,0.050474,98946.0,98945.0,0.050473]
[1732308713634,0.050472,98951.0,98950.0,0.050471]
[1732308714526,0.050469,98956.0,98955.0,0.050469]
[1732308716022,0.050473,98950.0,98949.0,0.050472]
[1732308719432,0.12392,98961.0,98938.0,0.411278]
[1732308719433,0.050477,98945.0,98944.0,0.050475]
[1732308719831,0.02179213,98962.0,98961.0,0.050466]
[1732308720028,0.00060001,98977.0,98965.0,0.050464]
[1732308720225,0.0663,98984.0,98965.0,0.050464]
[1732308720640,0.0328,98989.0,98965.0,0.050464]
[1732308720936,0.1,99000.0,98965.0,0.050464]
[1732308720937,0.05045,98993.0,98979.0,0.050457]
[1732308721136,0.050451,98992.0,98991.0,0.05045]
[1732308721739,0.050449,98996.0,98995.0,0.050448]
[1732308721940,0.050449,98996.0,98986.0,0.3608]
[1732308721941,0.0663,98999.0,98986.0,0.3608]
[1732308722134,0.050452,98990.0,98989.0,0.050452]
[1732308722335,0.050453,98987.0,98986.0,0.3608]
[1732308723336,0.050453,98987.0,98976.0,0.3608]
[1732308723642,0.050458,98977.0,98976.0,0.411259]
[1732308724637,0.050458,98977.0,98976.0,0.3608]
[1732308726035,0.050458,98977.0,98976.0,0.411259]
[1732308726242,0.050458,98977.0,98976.0,0.3608]
[1732308727044,0.050458,98977.0,98976.0,0.411259]
[1732308727745,0.12392,98985.0,98976.0,0.3608]
[1732308727940,0.050457,98982.0,98981.0,0.050456]
[1732308729737,0.050458,98980.0,98979.0,0.050457]
[1732308731050,0.0663,98999.0,98992.0,0.05045]
[1732308731340,0.0663,98999.0,98976.0,0.36136]
[1732308731341,0.050453,98991.0,98990.0,0.050451]
[1732308731738,0.050448,98998.0,98988.0,0.050452]
[1732308731938,0.050453,98989.0,98988.0,0.050452]
[1732308732137,0.0663,98999.0,98986.0,0.36132]
[1732308732439,0.050453,98987.0,98986.0,0.411254]
[1732308733958,0.05045,98996.0,98995.0,0.050449]
[1732308734645,0.0663,98999.0,98986.0,0.3608]
[1732308734850,0.050452,98991.0,98990.0,0.050451]
[1732308735345,0.050453,98987.0,98986.0,0.411773]
[1732308735542,0.050453,98987.0,98986.0,0.411253]
[1732308735843,0.05045,98996.0,98995.0,0.050447]
[1732308736143,0.12165403,99000.0,98999.0,0.050447]
[1732308736844,0.17210003,99000.0,98999.0,0.050447]
[1732308737446,0.050449,98996.0,98995.0,0.411768]
[1732308737646,0.050449,98996.0,98995.0,0.411248]
[1732308739144,0.12165403,99000.0,98999.0,0.050447]
[1732308739444,0.1,99000.0,98999.0,0.050447]
[1732308740443,0.150446,99000.0,98999.0,0.050447]
[1732308742134,0.050447,98999.0,98998.0,0.36132]
[1732308742334,0.050447,98999.0,98998.0,0.3608]
[1732308742539,0.1,99000.0,98999.0,0.050447]
[1732308742743,0.1,99000.0,98999.0,0.083247]
[1732308745048,0.150446,99000.0,98999.0,0.083247]
[1732308745743,0.1,99000.0,98999.0,0.083247]
[1732308749343,0.00151569,99012.0,99011.0,0.050441]
[1732308749549,0.00151569,99012.0,99011.0,0.411241]
[1732308752753,0.05195569,99012.0,99011.0,0.411241]
[1732308753154,0.05195569,99012.0,99011.0,0.3608]
[1732308755053,0.050446,99001.0,99000.0,0.09770368]
[1732308755261,0.050447,98999.0,98994.0,0.050449]
[1732308755452,0.050447,98999.0,98998.0,0.3608]
[1732308759259,0.050447,98999.0,98998.0,0.411247]
[1732308760257,0.050447,98999.0,98998.0,0.3608]
[1732308761260,0.050447,98999.0,98998.0,0.411247]
[1732308763260,0.050447,98999.0,98998.0,0.3608]
[1732308765774,0.050447,98999.0,98998.0,0.411247]
[1732308765972,0.02140406,99000.0,98999.0,0.050447]
[1732308766172,0.050444,99004.0,99003.0,0.050443]
[1732308766481,0.050441,99011.0,99010.0,0.050441]
[1732308766683,0.050441,99011.0,99010.0,0.411241]
[1732308767879,0.02230072,99016.0,99011.0,0.050441]
[1732308769076,0.050437,99019.0,99011.0,0.050441]
[1732308769277,0.050435,99023.0,99022.0,0.050435]
[1732308769478,0.0331,99033.0,99022.0,0.3608]
[1732308769678,0.0331,99033.0,99030.0,0.3608]
[1732308769879,0.0331,99033.0,99030.0,0.411231]
[1732308769880,0.050431,99031.0,99030.0,0.411231]
[1732308770482,0.02229685,99033.0,99030.0,0.3608]
[1732308770670,0.00151504,99053.0,99030.0,0.3608]
[1732308770671,0.050429,99035.0,99034.0,0.050428]
[1732308771577,0.050426,99041.0,99040.0,0.050425]
[1732308771771,0.050426,99041.0,99040.0,0.411225]
[1732308771979,0.0322,99045.0,99044.0,0.050424]
[1732308771980,0.082624,99045.0,99044.0,0.050424]
[1732308772183,0.050424,99044.0,99043.0,0.3608]
[1732308772484,0.050424,99044.0,99043.0,0.411225]
[1732308773980,0.050424,99044.0,99043.0,0.3608]
[1732308775781,0.050424,99044.0,99043.0,0.411225]
[1732308776886,0.050424,99044.0,99043.0,0.3608]
[1732308777081,0.02192075,99049.0,99043.0,0.3608]
[1732308777287,0.05042,99052.0,99046.0,0.050423]
[1732308777581,0.05193504,99053.0,99051.0,0.3608]
[1732308777884,0.05042,99052.0,99051.0,0.3608]
[1732308778284,0.00151504,99053.0,99051.0,0.41122]
[1732308778685,0.05193504,99053.0,99051.0,0.3608]
[1732308778878,0.00151504,99053.0,99052.0,0.05042]
[1732308779081,0.00151504,99053.0,99051.0,0.3608]
[1732308779282,0.05042,99052.0,99051.0,0.3608]
[1732308784588,0.05042,99052.0,99051.0,0.41122]
[1732308785390,0.05042,99052.0,99051.0,0.3608]
[1732308785586,0.050424,99044.0,99043.0,0.3608]
[1732308786089,0.050429,99035.0,99034.0,0.3608]
[1732308786487,0.05181605,99035.0,99034.0,0.3608]
[1732308787195,0.00138705,99035.0,99034.0,0.3608]
[1732308787403,0.12692,99078.0,99052.0,0.05042]
[1732308787600,0.0642,99068.0,99067.0,0.050412]
[1732308787902,0.0642,99068.0,99067.0,0.772012]
[1732308792303,0.0642,99068.0,99067.0,0.7216]
[1732308792493,0.114612,99068.0,99067.0,0.7216]
[1732308793501,0.0642,99068.0,99067.0,0.772012]
[1732308793690,0.0315,99068.0,99067.0,0.772012]
[1732308793897,0.12688,99075.0,99072.0,0.05041]
[1732308794090,0.12688,99078.0,99067.0,0.72216]
[1732308794299,0.12688,99078.0,99077.0,0.3608]
[1732308794496,0.177287,99078.0,99077.0,0.3608]
[1732308795002,0.12688,99078.0,99077.0,0.411207]
[1732308795594,0.050405,99081.0,99077.0,0.411207]
[1732308795790,0.0313,99082.0,99080.0,0.3608]
[1732308795997,0.02232198,99085.0,99084.0,0.050404]
[1732308796193,0.05191666,99088.0,99085.0,0.050403]
[1732308796399,0.05191666,99088.0,99087.0,0.3608]
[1732308800098,0.07050855,99088.0,99087.0,0.3608]
[1732308805597,0.050411,99070.0,99069.0,0.3608]
[1732308805904,0.050411,99070.0,99069.0,0.41121]
[1732308806295,0.050411,99070.0,99069.0,0.3608]
[1732308806502,0.050411,99070.0,99069.0,0.411211]
[1732308807010,0.050393,99106.0,99069.0,0.411211]
[1732308807209,0.07050855,99088.0,99087.0,0.411202]
[1732308807509,0.1,99100.0,99097.0,0.050397]
[1732308807697,0.1,99100.0,99097.0,0.411197]
[1732308808599,0.1,99100.0,99097.0,0.3608]
[1732308808812,0.1,99100.0,99097.0,0.411197]
[1732308809106,0.1,99100.0,99099.0,0.050396]
[1732308809614,0.050392,99107.0,99106.0,0.050391]
[1732308809804,0.050392,99107.0,99106.0,0.411191]
[1732308810800,0.050392,99107.0,99106.0,0.3608]
[1732308816110,0.050396,99100.0,99099.0,0.050396]
[1732308816320,0.050393,99107.0,99106.0,0.050392]
[1732308817311,0.050393,99106.0,99105.0,0.3608]
[1732308818016,0.05039,99111.0,99105.0,0.3608]
[1732308818315,0.12572,99112.0,99105.0,0.3608]
[1732308818513,0.12572,99119.0,99115.0,0.050388]
[1732308818907,0.050385,99121.0,99113.0,0.3608]
[1732308819106,0.12568,99124.0,99117.0,0.050387]
[1732308819312,0.0331,99129.0,99117.0,0.050387]
[1732308819518,0.18848,99127.0,99117.0,0.050387]
[1732308819714,0.15668,99127.0,99117.0,0.050387]
[1732308820121,0.207062,99127.0,99117.0,0.050387]
[1732308820422,0.15668,99127.0,99117.0,0.050387]
[1732308820624,0.050383,99125.0,99117.0,0.050387]
[1732308821222,0.00151395,99118.0,99117.0,0.050387]
[1732308821719,0.050391,99110.0,99097.0,0.00151355]
[1732308821919,0.050391,99109.0,99104.0,0.050393]
[1732308822115,0.050391,99109.0,99106.0,0.050393]
[1732308822316,0.050391,99109.0,99107.0,0.050392]
[1732308822622,0.050391,99108.0,99107.0,0.050392]
[1732308823921,0.050393,99106.0,99103.0,0.050394]
[1732308824118,0.050393,99106.0,99099.0,0.050396]
[1732308824316,0.050393,99106.0,99104.0,0.050393]
[1732308825214,0.050393,99106.0,99097.0,0.00151355]
[1732308825215,0.050393,99106.0,99105.0,0.411193]
[1732308825625,0.050393,99106.0,99105.0,0.3608]
[1732308827319,0.050393,99106.0,99105.0,0.411193]
[1732308827518,0.050393,99106.0,99105.0,0.3608]
[1732308828721,0.050393,99106.0,99105.0,0.411193]